[Event "Czech Championship U20 Open 2023"]
[Site "Jaromerice nad Rokytnou"]
[Date "2023.03.12"]
[Round "4.5"]
[White "Jares, Michal"]
[Black "Hrbek, Stepan"]
[Result "1/2-1/2"]
[ECO "A33"]
[WhiteElo "2177"]
[BlackElo "2340"]
[Annotator "TA"]
[PlyCount "61"]
[EventDate "2023.03.10"]
[EventType "tourn"]
[EventCountry "CZE"]
[SourceTitle "playchess.com"]
[Source "ChessBase"]
[SourceQuality "1"]
[TimeControl "40/5400+30:1800+30"]

{[%evp 12,61,12,-11,36,0,50,58,47,51,47,44,52,48,45,47,50,47,64,49,52,51,49,44,46,45,52,38,45,45,45,35,42,41,45,33,37,21,72,56,23,14,27,0,17,12,19,15,31,17,45,22]} 1. Nf3 {[%emt 0:00:04]} c5 {[%emt 0:00:14]} 2. c4 {[%emt 0:00:13]} Nc6 {[%emt 0:00:12]} 3. d4 {[%emt 0:00:25]} cxd4 {[%emt 0:00:25]} 4. Nxd4 {[%emt 0:00:11]} Nf6 {[%emt 0:02:50]} 5. Nc3 {[%emt 0:02:02]} e6 {[%emt 0:00:18]} 6. g3 {[%emt 0:01:39]} Qb6 {[%emt 0:00:20]} 7. Nc2 {[%emt 0:09:04] 7.Ndb5 is becoming the main line.} Ne5 {[%emt 0:15:27] A33: Symmetrical English: 2 Nf3 Nf6 3 d4 cxd4 4 Nxd4 e6 5 Nc3 Nc6.} (7... Ng4 8. e3 Nf6 9. Bg2 $14) (7... d5 $11 {deserves consideration.}) 8. Ne3 {[%emt 0:05:57]} Nfg4 {[%emt 0:10:09]} ({Better is} 8... h5 $11) 9. Nxg4 $1 $14 {[%emt 0:10:40][%mdl 64] [#] Remove Defender} Nxg4 {[%emt 0:00:09]} 10. e3 {[%emt 0:03:22]} Qc6 {[%emt 0:09:33] Threatens to win with ...Nxf2.} 11. e4 {[%emt 0:02:53] [#]} Nf6 $146 {[%emt 0:05:03]} ({Predecessor:} 11... Ne5 12. Qe2 Bb4 13. f4 Bxc3+ 14. bxc3 Ng6 15. Ba3 b5 16. Bg2 Qxc4 17. Qxc4 bxc4 {1-0 Makoto,R (2378)-De Abreu,R (2110) Johannesburg PSS Prestige op rapid 2017 (1)}) 12. Qd3 {[%emt 0:04:53]} b6 {[%emt 0:04:46]} 13. Bg2 {[%emt 0:01:07]} Bb7 {[%emt 0:00:45]} 14. O-O {[%emt 0:01:13]} d6 {[%emt 0:03:42]} 15. b3 {[%emt 0:02:40]} Be7 {[%emt 0:00:51]} 16. Bb2 {[%emt 0:02:36]} O-O {[%emt 0:01:44]} 17. Rfd1 {[%emt 0:01:46]} a6 {[%emt 0:03:19]} 18. Rac1 {[%emt 0:03:17]} Rac8 {[%emt 0:01:22]} 19. h3 {[%emt 0:01:24]} Rfd8 {[%emt 0:00:34]} 20. Qe2 {[%emt 0:03:55]} Bf8 {[%emt 0:01:34]} 21. Kh2 {[%emt 0:01:11]} Qc7 {[%emt 0:02:29]} 22. Rd2 {[%emt 0:01:26]} Nd7 {[%emt 0:04:30]} 23. Rcd1 {[%emt 0:02:51]} Bc6 {[%emt 0:00:48]} 24. f4 {[%emt 0:02:36]} Qb8 {[%emt 0:02:57] [#]} (24... h6 $11 {remains equal.}) 25. e5 $1 $16 {[%emt 0:05:50] White is more active.} Bxg2 {[%emt 0:02:39]} 26. Qxg2 {[%emt 0:00:49] With the idea Ne4.} ({Don't do} 26. Kxg2 Qb7+ 27. Qf3 Nc5 $14) 26... Nc5 {[%emt 0:02:15]} 27. Ne4 {[%emt 0:03:09]} dxe5 {[%emt 0:06:09]} 28. Bxe5 {[%emt 0:01:05]} Rxd2 {[%emt 0:01:00]} 29. Rxd2 {[%emt 0:00:02]} Qa8 {[%emt 0:00:51]} 30. Nxc5 {[%emt 0:01:01]} Bxc5 {[%emt 0:00:07]} 31. Qxa8 {[%emt 0:04:16] Weighted Error Value: White=0.07 (flawless) /Black=0.11 (very precise)} 1/2-1/2

[Event "Czech Championship U20 Open 2023"]
[Site "Jaromerice nad Rokytnou"]
[Date "2023.03.12"]
[Round "4.6"]
[White "Mach, Petr"]
[Black "Ocelak, Jakub"]
[Result "1/2-1/2"]
[ECO "A58"]
[WhiteElo "2167"]
[BlackElo "2190"]
[Annotator "TA"]
[PlyCount "39"]
[EventDate "2023.03.10"]
[EventType "tourn"]
[EventCountry "CZE"]
[SourceTitle "playchess.com"]
[Source "ChessBase"]
[SourceQuality "1"]
[TimeControl "40/5400+30:1800+30"]

{[%evp 18,39,33,25,36,0,9,0,37,0,22,0,0,0,0,0,0,0,0,0,0,-15,0,-16]} 1. c4 {[%emt 0:00:01][%cal Bc2c4,Bc4b5,Bb5a6][%mdl 32]} Nf6 {[%emt 0:02:37]} 2. d4 {[%emt 0:00:56]} c5 {[%emt 0:02:07]} 3. d5 {[%emt 0:05:06]} b5 {[%emt 0:00:01]} 4. cxb5 {[%emt 0:00:14]} a6 {[%emt 0:00:01]} 5. bxa6 {[%emt 0:02:32]} g6 {[%emt 0:00:02]} 6. Nc3 {[%emt 0:01:45]} Bg7 {[%emt 0:00:01]} 7. g3 {[%emt 0:03:41]} O-O {[%emt 0:00:02]} 8. Bg2 {[%emt 0:00:11]} d6 {[%emt 0:00:02]} 9. Nf3 {[%emt 0:02:34]} Nxa6 {[%emt 0:00:38]} 10. O-O {[%emt 0:02:56]} Bf5 {[%emt 0:00:02] E60: King's Indian: Unusual lines and Fianchetto Variation without Nc3.} 11. Nh4 {[%emt 0:02:36] Strongly threatening Nxf5.} Bd7 {[%emt 0:00:03]} 12. Nf3 {[%emt 0:03:59]} Bf5 {[%emt 0:13:04]} 13. Nh4 {[%emt 0:03:39] Black must now prevent Nxf5.} Bd7 {[%emt 0:00:21] The position is equal.} 14. Rb1 {[%emt 0:02:30]} Qa5 {[%emt 0:02:44]} 15. Bd2 {[%emt 0:03:25]} Rfb8 {[%emt 0:00:42]} 16. b3 {[%emt 0:02:48]} Qa3 {[%emt 0:00:56]} 17. Bc1 {[%emt 0:03:33]} Qa5 {[%emt 0:00:02]} 18. Bd2 {[%emt 0:02:18]} Qa3 {[%emt 0:00:07]} 19. Bc1 {[%emt 0:01:20]} Qa5 {[%mdl 1024] [#] Black has compensation.} 20. Bd2 $146 {An uneventful encounter.   Weighted Error Value: White=0.09 (flawless) /Black=0.02 (flawless)} ({Predecessor:} 20. Bb2 Ne8 21. Qc1 c4 22. Ne4 cxb3 23. Bxg7 Nxg7 24. axb3 Qb4 25. Qc4 Bb5 26. Qxb4 Nxb4 27. Nc3 Na2 28. Nxb5 Rxb5 29. Nf3 Rb4 30. e3 Nf5 {½-½ Kornev,A (2511)-Shomoev,A (2566) RUS-ch Higher League 64th 2011 (10)}) 1/2-1/2

[Event "Czech Championship U20 Open 2023"]
[Site "Jaromerice nad Rokytnou"]
[Date "2023.03.13"]
[Round "5.1"]
[White "Ocelak, Jakub"]
[Black "Hlavina, Matous"]
[Result "1-0"]
[ECO "D00"]
[WhiteElo "2190"]
[BlackElo "2091"]
[Annotator "TA"]
[PlyCount "77"]
[EventDate "2023.03.10"]
[EventType "tourn"]
[EventCountry "CZE"]
[SourceTitle "playchess.com"]
[Source "ChessBase"]
[SourceQuality "1"]
[TimeControl "40/5400+30:1800+30"]

{[%evp 9,76,14,25,21,27,23,27,29,43,44,37,13,29,22,38,44,91,90,98,96,92,78,111,88,102,90,94,88,106,93,138,115,251,251,251,257,243,243,255,251,254,248,295,284,300,289,340,324,338,333,341,337,415,401,494,316,495,487,709,708,679,677,941,914,29982,29983,29982,1112,29999]} 1. d4 {[%emt 0:00:05]} d5 {[%emt 0:01:01]} 2. Nc3 {[%emt 0:00:01]} Nf6 {[%emt 0:00:26]} 3. Bf4 {[%emt 0:00:02]} a6 {[%emt 0:00:18]} 4. e3 {[%emt 0:00:07]} Bf5 {[%emt 0:00:21]} 5. Bd3 {[%emt 0:00:18]} Bxd3 {[%emt 0:01:07]} 6. cxd3 {[%emt 0:00:01] D00: 1 d4 d5: Unusual lines.} e6 {[%emt 0:00:35]} 7. Qb3 {[%emt 0:05:51]} b6 {[%emt 0:04:11]} 8. Nf3 {[%emt 0:08:10] [#] White has an edge.} Bd6 $146 {[%emt 0:00:39]} ({Predecessor:} 8... Nbd7 9. e4 c6 10. h3 Be7 11. e5 Ng8 12. Ne2 h5 13. O-O-O c5 14. Kb1 h4 {1-0 Niemann,H (2642)-Ju,W (2560) Charity Cup Prelim rapid 2022 (8)}) 9. Bxd6 {[%emt 0:11:48]} cxd6 {[%emt 0:01:55]} 10. e4 {[%emt 0:00:11]} dxe4 {[%emt 0:02:07]} 11. dxe4 {[%emt 0:00:33]} d5 {[%emt 0:05:33]} 12. exd5 {[%emt 0:02:38]} Nxd5 {[%emt 0:03:05]} (12... exd5 $14 13. Ne5 O-O) 13. Nxd5 $16 {[%emt 0:00:26]} Qxd5 {[%emt 0:00:49]} 14. Qxd5 {[%emt 0:08:21]} ({Much worse is} 14. Qxb6 Qe4+ 15. Kd2 (15. Kf1 O-O $11) 15... O-O $11) 14... exd5 {[%emt 0:00:00] [#]} 15. Rc1 $1 {[%emt 0:01:56] Strongly threatening Rc8+.} Nd7 {[%emt 0:00:56]} 16. Rc6 {[%emt 0:10:15]} Rb8 {[%emt 0:04:48]} 17. O-O {[%emt 0:02:27]} O-O {[%emt 0:01:26]} 18. Rc7 {[%emt 0:05:49]} Rfd8 {[%emt 0:01:41]} 19. Rfc1 {[%emt 0:01:23]} Kf8 {[%emt 0:05:30]} 20. g3 {[%emt 0:05:28] White is much more active.} f6 {[%emt 0:01:08] Loses the game.} (20... Ke8 $16 21. Kg2 a5) 21. Nh4 $18 {[%emt 0:03:52]} g6 {[%emt 0:01:07]} 22. Ng2 {[%emt 0:00:17] Black must now prevent Nf4.} b5 {[%emt 0:10:14]} 23. Nf4 {[%emt 0:09:24]} Rb6 {[%emt 0:01:09] Repels Ne6+} 24. R1c6 {[%emt 0:01:44]} ({Don't take} 24. Nxd5 $6 Rd6 $16) 24... Rxc6 {[%emt 0:02:58]} 25. Rxc6 {[%emt 0:00:02][%mdl 4096] [#] Endgame And now Ne6+ would win. KRN-KRN} Kf7 {[%emt 0:02:16] Inhibits Ne6.} 26. Rxa6 {[%emt 0:01:14]} Rc8 {[%emt 0:02:09]} 27. Nxd5 {[%emt 0:04:32]} Rc2 {[%emt 0:00:58]} 28. b3 {[%emt 0:02:35]} Rd2 {[%emt 0:01:28]} 29. Rd6 {[%emt 0:00:11]} Nf8 {[%emt 0:07:13]} 30. Rxf6+ {[%emt 0:01:10]} Kg7 {[%emt 0:00:12]} 31. Rb6 {[%emt 0:00:19]} Rxa2 {[%emt 0:00:34]} 32. Rxb5 {[%emt 0:00:29] aiming for Rb7+.} Rd2 {[%emt 0:00:06]} (32... Ne6 $142 33. Rb7+ Kh6) 33. Rb7+ {[%emt 0:01:23]} Kh6 {[%emt 0:00:01]} (33... Kh8 $142 34. Nf6 Rxd4) 34. Nf6 {[%emt 0:02:33]} Rxd4 {[%emt 0:00:38]} 35. Rf7 {[%emt 0:01:25]} Rd3 {[%emt 0:02:40]} 36. Ng8+ {[%emt 0:00:39]} Kg5 {[%emt 0:00:17]} 37. Rxf8 {[%emt 0:00:28]} Kg4 {[%emt 0:00:12]} 38. Rf4+ {[%emt 0:00:22]} (38. Kg2 $142 Rxb3 39. Nf6+ Kf5 40. Nxh7+ Ke6 41. Rf6+ Ke7 42. Rxg6 Kf7 43. Rd6) 38... Kh3 {[%emt 0:00:03]} 39. Rh4# {Weighted Error Value: White=0.09 (flawless) /Black=0.74} 1-0

[Event "Czech Championship U20 Open 2023"]
[Site "Jaromerice nad Rokytnou"]
[Date "2023.03.13"]
[Round "5.2"]
[White "Hrbek, Stepan"]
[Black "Mach, Petr"]
[Result "1-0"]
[ECO "D43"]
[WhiteElo "2340"]
[BlackElo "2167"]
[Annotator "TA"]
[PlyCount "47"]
[EventDate "2023.03.10"]
[EventType "tourn"]
[EventCountry "CZE"]
[SourceTitle "playchess.com"]
[Source "ChessBase"]
[SourceQuality "1"]
[TimeControl "40/5400+30:1800+30"]

{[%evp 10,46,31,-8,52,53,85,60,77,79,188,168,210,188,195,198,183,181,178,180,165,156,493,499,487,499,960,934,845,844,1188,1184,2189,974,961,934,29998,29999,29999]} 1. d4 {[%emt 0:00:06]} e6 {[%emt 0:00:03]} 2. c4 {[%emt 0:01:49]} Nf6 {[%emt 0:02:38]} 3. Nf3 {[%emt 0:01:28]} d5 {[%emt 0:00:13]} 4. Nc3 {[%emt 0:00:09]} c6 {[%emt 0:02:41]} 5. Bg5 {[%emt 0:00:32]} h6 {[%emt 0:00:54]} 6. Bh4 {[%emt 0:01:38]} Qb6 {[%emt 0:03:29] D43: Semi-Slav: 5 Bg5 h6.} (6... dxc4 $11 7. e4 g5) 7. Qc2 $14 {[%emt 0:07:57]} dxc4 {[%emt 0:02:15]} 8. e4 {[%emt 0:01:06] [#]} g5 $146 {[%emt 0:02:27] White is slightly better.} ({Predecessor:} 8... Na6 9. Bxc4 Nb4 10. Qe2 g5 11. Bg3 g4 12. Ne5 Qxd4 13. Rd1 Qb6 14. O-O h5 15. a3 {1-0 Dmitrieva,G (2201)-Pajuelo,J ICCF FM/1513 2012}) 9. Bg3 {[%emt 0:00:11]} g4 {[%emt 0:00:12]} (9... Nh5 $16) 10. Ne5 {[%emt 0:01:08]} Qxd4 {[%emt 0:00:47]} 11. Rd1 {[%emt 0:04:46]} ({Less strong is} 11. Bxc4 Nbd7 12. Rd1 Qc5 $14) 11... Qc5 {[%emt 0:03:34]} 12. Nxc4 {[%emt 0:00:34] Nd6+ would be deadly.} ({Much less strong is} 12. Qd2 $6 Nbd7 $16) 12... Nbd7 {[%emt 0:05:41]} 13. Nd6+ {[%emt 0:01:30]} Bxd6 {[%emt 0:00:08]} 14. Bxd6 {[%emt 0:00:10]} Qg5 {[%emt 0:06:11]} 15. Be2 {[%emt 0:05:01]} Nf8 $2 {[%emt 0:08:14]} (15... e5 $16 16. Qd3 Nh5) 16. e5 $18 {[%emt 0:21:53] Black is weak on the dark squares} Nd5 {[%emt 0:00:22]} 17. Ne4 {[%emt 0:00:13]} Qg7 {[%emt 0:01:59] [#]} (17... Qf5 $142 18. Bc7 Qxe4 19. Qxe4 Nxc7 20. Qxg4 Ng6) 18. Rxd5 $1 {[%emt 0:16:30][%mdl 576] Remove Defender} exd5 {[%emt 0:00:10]} 19. Nf6+ {[%emt 0:00:04]} Kd8 {[%emt 0:00:05]} 20. Qc5 {[%emt 0:00:05][%cal Od6c7] Bc7+! would kill now.} Be6 {[%emt 0:03:56]} 21. Be7+ {[%emt 0:00:28] A strong pair of Bishops.} (21. Qb4 $142 Qxf6 22. exf6) 21... Kc8 {[%emt 0:00:16] [#]} 22. Ba6 $1 {[%emt 0:00:17][%mdl 576] Deflection} Kb8 {[%emt 0:05:18]} (22... Bd7 23. O-O) 23. Qd6+ {[%emt 0:00:20]} Kc8 {[%emt 0:00:23]} 24. Qd8# {[%emt 0:00:06] Black did not feel at home in the position after the opening. A cool game by Hrbek.   Weighted Error Value: White=0.11 (very precise) /Black=1.05} 1-0

[Event "Czech Championship U20 Open 2023"]
[Site "Jaromerice nad Rokytnou"]
[Date "2023.03.13"]
[Round "5.3"]
[White "Jun, Rudolf"]
[Black "Jares, Michal"]
[Result "1/2-1/2"]
[ECO "B15"]
[WhiteElo "2152"]
[BlackElo "2177"]
[Annotator "TA"]
[PlyCount "159"]
[EventDate "2023.03.10"]
[EventType "tourn"]
[EventCountry "CZE"]
[SourceTitle "playchess.com"]
[Source "ChessBase"]
[SourceQuality "1"]
[TimeControl "40/5400+30:1800+30"]

{[%evp 12,159,3,4,23,20,48,0,0,0,-11,0,4,-7,0,-4,0,-29,-31,-28,-14,-7,-3,-9,-8,-9,0,-15,3,0,2,-4,0,-4,-4,-4,-4,-4,-4,-4,-4,-4,-3,-3,-3,-3,-3,-3,-5,-9,-12,-55,-54,-54,-62,-56,-67,-86,-70,-86,-77,-77,-87,-75,-8,-8,-8,-8,-8,-13,-13,-13,-13,-13,-13,-13,-13,-13,-13,-13,-13,-13,-13,-13,-13,-13,-13,-13,-13,-13,-13,-13,-13,-13,-8,-13,0,-13,-13,-13,-8,-8,0,-13,-13,-13,-12,-12,-12,-12,-8,-8,-8,-8,-8,-8,-8,-8,-8,-8,-8,-8,-8,-8,-8,-8,-8,-8,-8,-8,-8,-8,-8,-8,0,0,0,0,0,0,0,0,0,0,0,0,0,0,0,0]} 1. e4 {[%emt 0:00:16]} c6 {[%emt 0:00:02]} 2. d4 {[%emt 0:01:46]} d5 {[%emt 0:00:03]} 3. Nd2 {[%emt 0:00:05]} dxe4 {[%emt 0:00:21]} 4. Nxe4 {[%emt 0:00:13]} Nf6 {[%emt 0:00:32]} 5. Ng3 {[%emt 0:01:11]} g6 {[%emt 0:00:44]} 6. Nf3 {[%emt 0:00:20]} Bg7 {[%emt 0:00:19]} 7. Be2 {[%emt 0:00:37]} Qc7 {[%emt 0:07:32] [#] B15: Caro-Kann: 3 Nc3: 3...g6 and 3...dxe4 4 Nxe4 Nf6 5 Nxf6+ exf6.} 8. O-O $146 {[%emt 0:02:43]} ({Predecessor:} 8. h4 Bg4 9. Bg5 Nbd7 10. Qd2 O-O-O 11. a4 e5 12. b4 Rhe8 13. O-O h6 14. Be3 {0-1 Dashdorj,B-Savitski,A (2007) Wch U12 Kemer 2007 (9)}) 8... h5 {[%emt 0:04:30]} 9. h4 {[%emt 0:01:50]} (9. Bc4 $14) 9... Bg4 $11 {[%emt 0:00:46]} 10. Ne5 {[%emt 0:00:51]} Nbd7 {[%emt 0:16:59]} 11. Nxg4 {[%emt 0:06:26]} Nxg4 {[%emt 0:04:18]} 12. Bxg4 {[%emt 0:00:07]} hxg4 {[%emt 0:00:03]} 13. Qxg4 {[%emt 0:00:28]} Nf6 {[%emt 0:01:23]} 14. Qf4 {[%emt 0:00:12]} Qxf4 {[%emt 0:06:27]} 15. Bxf4 {[%emt 0:00:06]} Rxh4 {[%emt 0:00:32]} (15... Nd5 $5 {[%cal Rd5f4]} 16. Bd2 Bxd4 $15) 16. Be5 {[%emt 0:00:12]} O-O-O {[%emt 0:07:51]} 17. Rfe1 {[%emt 0:01:14]} Bf8 {[%emt 0:04:11]} 18. Ne2 {[%emt 0:07:24]} Bg7 {[%emt 0:01:48]} 19. Ng3 {[%emt 0:00:11]} Rdh8 {[%emt 0:01:03]} 20. f3 {[%emt 0:01:41]} Kd7 {[%emt 0:02:35]} 21. c3 {[%emt 0:01:03]} Nh5 {[%emt 0:07:33] ...Bxe5 would be deadly.} 22. Nxh5 {[%emt 0:04:14]} Bxe5 {[%emt 0:00:03]} 23. Rxe5 {[%emt 0:01:04] Threatens to win with Ng3.} R4xh5 {[%emt 0:00:52]} 24. Rxh5 {[%emt 0:00:28]} Rxh5 {[%emt 0:00:04][%mdl 4096] Endgame KR-KR} 25. Kf2 {[%emt 0:00:12]} Kd6 {[%emt 0:01:55]} 26. b3 {[%emt 0:01:17]} a5 {[%emt 0:03:26]} 27. Ke3 {[%emt 0:01:21]} Rh2 {[%emt 0:01:49]} 28. Kf2 {[%emt 0:01:17]} b6 {[%emt 0:02:17]} 29. Kg3 {[%emt 0:00:50]} Rh5 {[%emt 0:00:41]} 30. Kf4 {[%emt 0:01:39] [#]} a4 $1 {[%emt 0:03:40]} 31. bxa4 {[%emt 0:03:22]} (31. Rc1 axb3) 31... Ra5 {[%emt 0:00:24]} 32. Rb1 {[%emt 0:00:27]} Rxa4 {[%emt 0:00:46]} 33. Rxb6 {[%emt 0:00:18]} Rxa2 {[%emt 0:02:19]} 34. g4 {[%emt 0:04:47] [#]} Ra3 $1 {[%emt 0:07:04]} 35. c4 {[%emt 0:00:06]} Ra4 {[%emt 0:02:16]} 36. c5+ {[%emt 0:00:12]} Kd5 {[%emt 0:00:10] Hoping for ...e5+.} 37. Ke3 {[%emt 0:00:03]} Rxd4 {[%emt 0:02:59]} ({Better is} 37... Ra3+ $17 38. Kf4 g5+ 39. Kxg5 Rxf3) 38. Rxc6 {[%emt 0:00:37][%mdl 64] Deflection. The position is equal.} Rxg4 {[%emt 0:03:41]} 39. Rc7 {[%emt 0:00:07]} Rg5 {[%emt 0:02:48] White should prevent ...Re5+.} 40. f4 {[%emt 0:00:20] Repels Re5+} Rf5 {[%emt 0:02:26] next ...e5 is good for Black.} 41. Rxe7 {[%emt 0:30:32]} Kxc5 {[%emt 0:30:02]} 42. Kf3 {[%emt 0:02:13]} Kd6 {[%emt 0:00:00]} 43. Ra7 {[%emt 0:00:00]} Ke6 {[%emt 0:00:00]} 44. Kg4 {[%emt 0:00:00]} Kf6 {[%emt 0:00:00]} 45. Ra6+ {[%emt 0:00:00]} Kg7 {[%emt 0:00:00]} 46. Ra7 {[%emt 0:00:00]} Rb5 {[%emt 0:00:00]} 47. Rc7 {[%emt 0:00:00]} Rb1 {[%emt 0:00:00]} 48. Ra7 {[%emt 0:00:00]} Rg1+ {[%emt 0:00:00]} 49. Kf3 {[%emt 0:00:00]} Rh1 {[%emt 0:00:00]} 50. Kg4 {[%emt 0:00:00]} Re1 {[%emt 0:00:00]} 51. Rb7 {[%emt 0:00:00]} Re6 {[%emt 0:00:00]} 52. Ra7 {[%emt 0:00:00]} Rf6 {[%emt 0:00:00]} 53. Kg5 {[%emt 0:00:00]} Rf5+ {[%emt 0:00:00]} 54. Kg4 {[%emt 0:00:00]} Kh6 {[%emt 0:00:00]} 55. Rb7 {[%emt 0:00:00]} Rf6 {[%emt 0:00:00]} 56. Ra7 {[%emt 0:00:00]} Kg7 {[%emt 0:00:00]} 57. Kg5 $1 {[%emt 0:00:00]} Rb6 {[%emt 0:00:00]} 58. Rc7 {[%emt 0:00:00]} Rb1 {[%emt 0:00:00]} 59. Kg4 {[%emt 0:00:00]} Rg1+ {[%emt 0:00:00]} 60. Kf3 {[%emt 0:00:00]} g5 {[%emt 0:00:00]} 61. fxg5 {[%emt 0:00:00]} Rxg5 {[%emt 0:00:00]} 62. Kf4 {[%emt 0:00:00]} Ra5 {[%emt 0:00:00]} 63. Rb7 {[%emt 0:00:00]} Kg6 {[%emt 0:00:00]} 64. Rb6+ {[%emt 0:00:00]} f6 {[%emt 0:00:00][%cal Bf7f6,Bf6f5,Bf5f4,Bf4f3][%mdl 32]} 65. Rb3 $1 {[%emt 0:00:00]} Ra4+ {[%emt 0:00:00]} 66. Kf3 {[%emt 0:00:00]} Kg5 {[%emt 0:00:00]} 67. Kg3 {[%emt 0:00:00]} Rg4+ {[%emt 0:00:00]} 68. Kf3 {[%emt 0:00:00]} Rc4 {[%emt 0:00:00]} 69. Kg3 {[%emt 0:00:00]} f5 {[%emt 0:00:00]} 70. Ra3 {[%emt 0:00:00]} Rg4+ {[%emt 0:00:00]} 71. Kf3 {[%emt 0:00:00]} Rh4 {[%emt 0:00:00]} 72. Kg3 {[%emt 0:00:00] Prevents Rh3+} f4+ {[%emt 0:00:00]} 73. Kg2 {[%emt 0:00:00]} Kg4 {[%emt 0:00:00]} 74. Ra8 {[%emt 0:00:00]} f3+ {[%emt 0:00:00]} 75. Kf2 {[%emt 0:00:00]} Rh2+ {[%emt 0:00:00]} 76. Kf1 {[%emt 0:00:00]} Rh5 {[%emt 0:00:00]} 77. Kf2 {[%emt 0:00:00]} Rh2+ {[%emt 0:00:00]} 78. Kf1 {[%emt 0:00:00]} f2 {[%emt 0:00:00]} 79. Rg8+ {[%emt 0:00:00]} Kf3 {[%emt 0:00:00] ( -> ...Rh1+)} 80. Rf8+ {[%emt 0:00:00] Weighted Error Value: White=0.04 (flawless) /Black=0.05 (flawless)} 1/2-1/2

[Event "Czech Championship U20 Open 2023"]
[Site "Jaromerice nad Rokytnou"]
[Date "2023.03.13"]
[Round "5.4"]
[White "Kubiczek, Michal"]
[Black "Svanda, Ondrej"]
[Result "0-1"]
[ECO "E04"]
[WhiteElo "2087"]
[BlackElo "2366"]
[Annotator "TA"]
[PlyCount "64"]
[EventDate "2023.03.10"]
[EventType "tourn"]
[EventCountry "CZE"]
[SourceTitle "playchess.com"]
[Source "ChessBase"]
[SourceQuality "1"]
[TimeControl "40/5400+30:1800+30"]

{[%evp 11,64,18,19,-10,-12,-2,-2,-2,0,0,0,0,0,-43,-33,-27,-7,-22,0,-63,-65,-66,-60,-50,-60,-98,-94,-100,-97,-115,-114,-187,-120,-152,-114,-151,-140,-138,-154,-156,-149,-237,-231,-233,-231,-212,-210,-257,-253,-666,-663,-715,-708,-4827,-1937]} 1. d4 {[%emt 0:00:03]} Nf6 {[%emt 0:00:06]} 2. c4 {[%emt 0:00:04]} e6 {[%emt 0:00:03]} 3. g3 {[%emt 0:00:11]} d5 {[%emt 0:00:08]} 4. Nf3 {[%emt 0:00:09]} dxc4 {[%emt 0:00:25]} 5. Bg2 {[%emt 0:00:32]} a6 {[%emt 0:00:09]} 6. O-O {[%emt 0:09:32]} Nc6 {[%emt 0:00:09]} 7. Ne5 {[%emt 0:13:38] E04: Open Catalan: 5 Nf3.} Nxe5 {[%emt 0:04:20]} 8. dxe5 {[%emt 0:00:56]} Qxd1 {[%emt 0:00:01]} 9. Rxd1 {[%emt 0:00:10] The position is equal.} Nd7 {[%emt 0:00:22][%cal Bf6d7,Bd7c5,Bc5b3][%mdl 32]} 10. Bf4 $1 {[%emt 0:05:32]} Rb8 {[%emt 0:03:29]} 11. a4 {[%emt 0:06:29]} Nc5 {[%emt 0:38:03] [#]} 12. a5 $146 {[%emt 0:18:14]} ({Predecessor:} 12. Nd2 Bd7 13. Rdc1 b5 14. axb5 axb5 15. Ra7 Na4 16. b3 Ba3 17. Rc2 Bc5 18. Rxc7 cxb3 19. R2xc5 Nxc5 20. Rxc5 {1-0 Novozhilov,S (1788)-Petrovsky,N (2006) Moscow op-A 17th 2021 (7)}) 12... Nb3 {[%emt 0:09:09]} 13. Ra4 {[%emt 0:00:56]} Bd7 {[%emt 0:00:01][%cal Bc8d7,Bd7a4,Ba4b5][%mdl 32]} 14. Rxc4 {[%emt 0:01:29]} c5 {[%emt 0:00:01]} 15. Be3 {[%emt 0:15:49]} (15. Rc3 $11 Nxa5 16. Ra3) 15... Nxa5 $15 {[%emt 0:01:26]} 16. Rc3 {[%emt 0:00:20]} Ba4 $36 {[%emt 0:02:28][%mdl 2048] Black is pushing.} 17. Rf1 {[%emt 0:10:24]} b6 {[%emt 0:04:13]} 18. Nd2 {[%emt 0:02:45]} Be7 {[%emt 0:05:33]} 19. Ra1 {[%emt 0:00:54]} Bb5 {[%emt 0:00:43]} 20. b3 {[%emt 0:04:19]} O-O {[%emt 0:03:26]} 21. Be4 {[%emt 0:03:02]} (21. Kf1 $17 {might work better.}) 21... Rfd8 {[%emt 0:05:19]} (21... Bxe2 $19 22. Rb1 Bb5) 22. Bd3 {[%emt 0:02:00]} Bxd3 {[%emt 0:00:53]} 23. exd3 {[%emt 0:00:02]} Nc6 {[%emt 0:07:23]} 24. Rxa6 {[%emt 0:01:37]} Nxe5 {[%emt 0:00:01]} 25. Nc4 {[%emt 0:01:17]} Bf6 {[%emt 0:00:44] [#] ...Nf3+ is the strong threat.} ({Inferior is} 25... Rxd3 26. Rxd3 Nxd3 27. Rxb6 Rxb6 28. Nxb6 $15) 26. Nxe5 {[%emt 0:01:38]} (26. Rc2 $17 {keeps fighting.}) 26... Bxe5 $19 {[%emt 0:00:02]} 27. Rc4 {[%emt 0:00:05]} Rxd3 {[%emt 0:03:55]} 28. b4 {[%emt 0:00:01]} Bd4 {[%emt 0:02:15]} 29. bxc5 Bxe3 {[%emt 0:02:34]} ({And not} 29... bxc5 30. Bxd4 cxd4 31. Kg2 $17) 30. c6 {[%emt 0:02:41] [#]} (30. fxe3 bxc5 31. Rxc5) 30... Bc5 {[%emt 0:02:19] Black is clearly winning.} 31. c7 {[%emt 0:00:01]} Rc8 {[%emt 0:00:34]} 32. Rxb6 {[%emt 0:00:03]} Bxb6 {[%emt 0:00:09] Weighted Error Value: White=0.65/Black=0.05 (flawless)} 0-1